Cogmind - Beta 9.3 @@@ ROGUE MODE // 2019.12.21 @ 18:03:20 // Winter2019/RPGLIKE Player: badjay Result: Destroyed by S-27 Virus with Autogun Performance ------------- Evolutions (4) 2000 Regions Visited (7) 1400 Robots Destroyed (1) 5 Value Destroyed (26) 26 Prototype IDs (2) 40 Alien Tech Used (0) 0 Bonus (300) 300 TOTAL SCORE: 3771 Bonus ------- Aligned with FarCom 300 Cogmind --------- Core Integrity 0/600 Matter 261/300 Energy 158/160 System Corruption 0% Temperature Cool (2) Movement Flying (40) Location -6/Factory Parts ------- > --- POWER (1) -------- Light Nuclear Core > --- PROPULSION (1) --- Xenon Bombardment Thruster > --- UTILITY (1) ------ ECM Suite > --- WEAPON (1) ------- (None) > --- INVENTORY (1) ---- Flight Unit Peak State ------------ > --- POWER ------------ Light Nuclear Core > --- PROPULSION ------- Flight Unit > --- UTILITY ---------- PSU Rigger > --- WEAPON ----------- Guided Plasma Cannon > --- INVENTORY -------- (None) [Rating: 20] Favorites ----------- Power Light Nuclear Core Power Core Light Nuclear Core Propulsion Flight Unit Leg Aluminum Leg Flight Unit Flight Unit Utility ECM Suite Device ECM Suite Weapon Grenade Launcher Energy Cannon Guided Plasma Cannon Ballistic Gun Minigun Launcher Grenade Launcher Build | -11 -10 -10 -10 -9 -8 -7 -6 ------- Run | Scr Mat Min Exi Min Mat Fac Fac Slots Evolved . | . . . . . . . . Power . | . . . . . . . . Propulsion . | . . . . . . . . Utility . | . . . . . . . . Weapon . | . . . . . . . . Parts Attached 12 | . 4 1 3 1 1 2 . Power 3 | . 1 . 1 . . 1 . Engine . | . . . . . . . . Core 3 | . 1 . 1 . . 1 . Reactor . | . . . . . . . . Propulsion 3 | . 1 1 . . . 1 . Treads . | . . . . . . . . Leg 1 | . 1 . . . . . . Wheel . | . . . . . . . . Hover . | . . . . . . . . Flight 2 | . . 1 . . . 1 . Utility 3 | . 1 . 1 1 . . . Device 3 | . 1 . 1 1 . . . Storage . | . . . . . . . . Processor . | . . . . . . . . Hackware . | . . . . . . . . Protection . | . . . . . . . . Artifact . | . . . . . . . . Weapon 3 | . 1 . 1 . 1 . . Energy Gun . | . . . . . . . . Energy Cannon 1 | . . . 1 . . . . Ballistic Gun 1 | . . . . . 1 . . Ballistic Cannon . | . . . . . . . . Launcher 1 | . 1 . . . . . . Special Weapon . | . . . . . . . . Impact Weapon . | . . . . . . . . Slashing Weapon . | . . . . . . . . Piercing Weapon . | . . . . . . . . Special Melee Weapon . | . . . . . . . . Unidentified Prototypes 2 | . . . 2 . . . . Parts Lost . | . . . . . . . . Power . | . . . . . . . . Propulsion . | . . . . . . . . Utility . | . . . . . . . . Weapon . | . . . . . . . . Highest Loss Streak . | . . . . . . . . Average Slot Usage (%) 59 | . 43 81 58 50 51 63 75 Core 14 | . 12 15 20 5 . 13 25 Leg 2 | . 11 15 . . . . . Flight 20 | . . 9 25 25 25 25 25 Device 16 | . 4 25 9 20 25 25 25 Energy Cannon 1 | . . . 4 . . . . Launcher 3 | . 16 15 . . . . . Naked Turns 86 | . 86 . . . . . . Heaviest Build 17 | . 9 9 17 1 4 6 6 Greatest Support 10 | 3 10 10 4 4 4 7 7 Greatest Overweight (x) 4 | . 2 1 4 . . . . Average Overweight (x) . | . . . . . . . . Largest Inventory Capacity 1 | . . 1 1 1 1 1 1 Average Capacity . | . . . 1 1 1 1 1 Most Carried 1 | . . 1 1 1 1 1 1 Average Carried . | . . . . . 1 . 1 Final Capacity 1 | . . 1 1 1 1 1 1 Final Carried 1 | . . 1 1 1 1 1 1 Class Distribution -------------------- 95% | Hacker-Mutant 4% | Mutant Dominant Class ---------------- Hacker-Mutant | -10/Materials Hacker-Mutant | -10/Mines Hacker-Mutant | -10/Exiles Hacker-Mutant | -9/Mines Hacker-Mutant | -8/Materials Hacker-Mutant | -7/Factory Hacker-Mutant | -6/Factory Resources | -11 -10 -10 -10 -9 -8 -7 -6 ----------- Run | Scr Mat Min Exi Min Mat Fac Fac Matter Collected 287 | 200 40 2 . 45 . . . Remotely . | . . . . . . . . Salvage Created 2 | . 2 . . . . . . Parts 2 | . 2 . . . . . . Haulers Intercepted . | . . . . . . . . Recyclers Shooed . | . . . . . . . . Parts Field Recycled . | . . . . . . . . Retrieved Matter . | . . . . . . . . Parts Self-Destructed . | . . . . . . . . Prevented . | . . . . . . . . Kills | -11 -10 -10 -10 -9 -8 -7 -6 ------- Run | Scr Mat Min Exi Min Mat Fac Fac Combat Hostiles Destroyed . | . . . . . . . . Classes Destroyed 1 | . 1 . . . . . . Operator 1 | . 1 . . . . . . Best Kill Streak 1 | . 1 . . . . . . Combat Bots Only . | . . . . . . . . Max Kills in Single Turn 1 | . 1 . . . . . . Gunslinging . | . . . . . . . . Exploded . | . . . . . . . . Melee . | . . . . . . . . Uniques/NPCs Destroyed . | . . . . . . . . Combat | -11 -10 -10 -10 -9 -8 -7 -6 -------- Run | Scr Mat Min Exi Min Mat Fac Fac Damage Taken 705 | . 28 180 . 6 231 8 252 Core 638 | . 28 150 . 6 225 8 221 Absorbed by Shields . | . . . . . . . . Redirected to Core 222 | . . 102 . . 21 . 99 Core Remaining (%) 61 | 100 . . . 74 36 35 . Volleys Fired 2 | . 1 . . . 1 . . Largest 1 | . 1 . . . 1 . . Hottest 30 | . 30 . . . 25 . . Shots Fired 2 | . 1 . . . 1 . . Gun 1 | . . . . . 1 . . Cannon . | . . . . . . . . Launcher 1 | . 1 . . . . . . Special . | . . . . . . . . Kinetic 1 | . . . . . 1 . . Thermal . | . . . . . . . . Explosive 1 | . 1 . . . . . . Electromagnetic . | . . . . . . . . Robot Hit Streak 1 | . 1 . . . . . . Robot Miss Streak . | . . . . . . . . Penetration Max . | . . . . . . . . Secondary Targets . | . . . . . . . . Shots Hit Robots 1 | . 1 . . . . . . Core Hits 3 | . 2 1 . . . . . Critical Hits . | . . . . . . . . Critical Kills . | . . . . . . . . Critical Parts Destroyed . | . . . . . . . . Melee Attacks . | . . . . . . . . Impact . | . . . . . . . . Slashing . | . . . . . . . . Piercing . | . . . . . . . . Sneak Attacks . | . . . . . . . . Combat Hostiles . | . . . . . . . . Follow-up Attacks . | . . . . . . . . Damage Inflicted 35 | . 30 5 . . . . . Guns . | . . . . . . . . Cannons . | . . . . . . . . Explosions 30 | . 30 . . . . . . Melee . | . . . . . . . . Ramming 5 | . . 5 . . . . . Kinetic . | . . . . . . . . Thermal . | . . . . . . . . Explosive 30 | . 30 . . . . . . Electromagnetic . | . . . . . . . . Impact . | . . . . . . . . Slashing . | . . . . . . . . Piercing . | . . . . . . . . Highest Corruption . | . . . . . . . . Average Corruption . | . . . . . . . . Corruption Purged . | . . . . . . . . Overload Shots . | . . . . . . . . Overflow Damage . | . . . . . . . . Projectiles . | . . . . . . . . Explosions . | . . . . . . . . Melee . | . . . . . . . . Knockbacks . | . . . . . . . . Impact . | . . . . . . . . Kinetic . | . . . . . . . . Secondary . | . . . . . . . . Self-Inflicted Damage 1 | . . 1 . . . . . Shots . | . . . . . . . . Rammed 4 | . . 4 . . . . . Targets Rammed 4 | . . 4 . . . . . Kicked . | . . . . . . . . Crushed . | . . . . . . . . Highest Temperature 5 | . . . . . 1 . 5 Average Temperature 3 | . . . . . 1 . 5 Received Heat Transfer 225 | . 18 102 . . 81 . 24 Siege Activations . | . . . . . . . . Robots Corrupted . | . . . . . . . . Combat Hostiles . | . . . . . . . . Parts Fried . | . . . . . . . . Impact Corruptions . | . . . . . . . . Robots Melted . | . . . . . . . . Combat Hostiles . | . . . . . . . . Parts Melted . | . . . . . . . . Heat Transferred . | . . . . . . . . Parts Sabotaged . | . . . . . . . . Parts Stolen . | . . . . . . . . Parts Stripped . | . . . . . . . . Power Chain Reactions . | . . . . . . . . Missiles Intercepted . | . . . . . . . . Alert | -11 -10 -10 -10 -9 -8 -7 -6 ------- Run | Scr Mat Min Exi Min Mat Fac Fac Peak Influence 184 | . 50 19 . . 79 128 184 Average Influence 53 | . 28 19 . . 38 68 117 Maximum Alert Level . | . . . . . . . . Low Security (%) 100 | 100 100 100 . 100 100 100 100 Level 1 . | . . . . . . . . Level 2 . | . . . . . . . . Level 3 . | . . . . . . . . Level 4 . | . . . . . . . . Level 5 . | . . . . . . . . High Security . | . . . . . . . . Max Security . | . . . . . . . . Squads Dispatched 7 | . 1 . . . 2 2 2 Investigation . | . . . . . . . . Extermination . | . . . . . . . . Reinforcement 7 | . 1 . . . 2 2 2 Assault . | . . . . . . . . Garrison . | . . . . . . . . Intercept . | . . . . . . . . Construction Impeded . | . . . . . . . . Haulers Reinforced . | . . . . . . . . Stealth | -11 -10 -10 -10 -9 -8 -7 -6 --------- Run | Scr Mat Min Exi Min Mat Fac Fac Distress Signals 3 | . . . . . 1 1 1 Communications Jammed . | . . . . . . . . Distress Signals . | . . . . . . . . Times Spotted 45 | . 7 2 . 3 10 6 17 Peak Tracking Total 9 | . 4 2 . 3 9 4 9 Tactical Retreats 7 | . . . . 1 1 2 3 Traps | -11 -10 -10 -10 -9 -8 -7 -6 ------- Run | Scr Mat Min Exi Min Mat Fac Fac Traps Triggered 1 | . . . . . . . 1 Indirectly . | . . . . . . . . Trap Hack Attempts . | . . . . . . . . Triggered . | . . . . . . . . Disarmed . | . . . . . . . . Reprogrammed . | . . . . . . . . Reused . | . . . . . . . . Traps Extracted . | . . . . . . . . Installed . | . . . . . . . . Triggered . | . . . . . . . . Machines | -11 -10 -10 -10 -9 -8 -7 -6 ---------- Run | Scr Mat Min Exi Min Mat Fac Fac Machines Disabled 1 | . 1 . . . . . . Max in Single Turn 1 | . 1 . . . . . . Machines Sabotaged . | . . . . . . . . Garrisons Compromised . | . . . . . . . . Overloaded Fab Kills . | . . . . . . . . Fab Network Shutdowns . | . . . . . . . . Hacking | -11 -10 -10 -10 -9 -8 -7 -6 --------- Run | Scr Mat Min Exi Min Mat Fac Fac Machines Accessed 14 | . 1 1 4 . 1 3 4 Terminals 9 | . 1 . . . 1 3 4 Fabricators . | . . . . . . . . Repair Stations . | . . . . . . . . Recycling Units . | . . . . . . . . Scanalyzers . | . . . . . . . . Garrison Access . | . . . . . . . . Total Hacks 103 | . 5 1 48 . 9 17 23 Successful 76 | . 2 1 48 . 6 11 8 Failed 27 | . 3 . . . 3 6 15 Catastrophic 1 | . . . . . 1 . . Database Lockouts . | . . . . . . . . Manual 34 | . . . 1 . 9 15 9 Terminals 54 | . 5 . . . 9 17 23 Fabricators . | . . . . . . . . Repair Stations . | . . . . . . . . Recycling Units . | . . . . . . . . Scanalyzers . | . . . . . . . . Garrison Access . | . . . . . . . . Terminal Hacks 66 | . 2 1 48 . 4 7 4 Record 48 | . . . 48 . . . . Open Door 1 | . . 1 . . . . . Level Access Points 3 | . . . . . 1 1 1 Branch Access Points 3 | . . . . . 1 1 1 Emergency Access Points 2 | . 1 . . . . 1 . Terminal Index 3 | . . . . . 1 2 . Alert Level 1 | . . . . . . . 1 Recall Investigation 1 | . . . . . . 1 . Registered Components 1 | . . . . . 1 . . Zone Layout 3 | . 1 . . . . 1 1 Fabricator Hacks . | . . . . . . . . Repair Station Hacks . | . . . . . . . . Recycling Unit Hacks . | . . . . . . . . Scanalyzer . | . . . . . . . . Garrison Access Hacks . | . . . . . . . . Unauthorized Hacks 28 | . . . . . 4 11 13 Terminals 10 | . . . . . 2 4 4 Assimilate 2 | . . . . . . 1 1 Botnet 6 | . . . . . 1 2 3 Operators 2 | . . . . . 1 1 . Fabricators . | . . . . . . . . Repair Stations . | . . . . . . . . Recycling Units . | . . . . . . . . Scanalyzers . | . . . . . . . . Garrison Access . | . . . . . . . . Data Cores Recovered 1 | . 1 . . . . . . Used . | . . . . . . . . Hacking Detections 8 | . 1 . . . 1 2 4 Full Trace Events 1 | . . . . . 1 . . Feedback Events . | . . . . . . . . Feedback Blocked . | . . . . . . . . Robot Schematics Acquired . | . . . . . . . . Robots Built . | . . . . . . . . Matter . | . . . . . . . . Time . | . . . . . . . . Total Robot Build Rating . | . . . . . . . . Part Schematics Acquired . | . . . . . . . . Parts Built . | . . . . . . . . Matter . | . . . . . . . . Time . | . . . . . . . . Total Part Build Rating . | . . . . . . . . Parts Repaired . | . . . . . . . . Time . | . . . . . . . . Parts Recycled . | . . . . . . . . Recycled Matter . | . . . . . . . . Retrieved Matter . | . . . . . . . . Retrieved Components . | . . . . . . . . Parts Scanalyzed . | . . . . . . . . Part Schematics Acquired . | . . . . . . . . Parts Damaged . | . . . . . . . . Bothacking | -11 -10 -10 -10 -9 -8 -7 -6 ------------ Run | Scr Mat Min Exi Min Mat Fac Fac Used RIF Installer . | . . . . . . . . Robots Hacked . | . . . . . . . . Non-combat . | . . . . . . . . Combat . | . . . . . . . . Robot Hacks Applied . | . . . . . . . . Relay Couplers Released . | . . . . . . . . Robots Rewired . | . . . . . . . . Allies Hacked . | . . . . . . . . Hacks Repelled . | . . . . . . . . Allies | -11 -10 -10 -10 -9 -8 -7 -6 -------- Run | Scr Mat Min Exi Min Mat Fac Fac Total Allies 2 | . . . . . . 1 1 Largest Group 1 | . . . . . . 1 1 Highest-Rated Group 26 | . . . . . . 26 26 Highest-Rated Ally 26 | . . . . . . 26 26 Total Orders . | . . . . . . . . Ally Attacks . | . . . . . . . . Total Damage . | . . . . . . . . Kills . | . . . . . . . . Allies Corrupted . | . . . . . . . . Allies Melted . | . . . . . . . . Intel | -11 -10 -10 -10 -9 -8 -7 -6 ------- Run | Scr Mat Min Exi Min Mat Fac Fac Robot Analysis Total . | . . . . . . . . Derelict Logs Recovered 1 | . . 1 . . . . . Drone Launches . | . . . . . . . . Drone Recoveries . | . . . . . . . . Exploration | -11 -10 -10 -10 -9 -8 -7 -6 ------------- Run | Scr Mat Min Exi Min Mat Fac Fac Turns Passed 1688 | 13 246 112 517 47 207 384 162 Spaces Moved 2282 | 27 238 138 538 112 274 570 385 Core 189 | 27 161 1 . . . . . Treads . | . . . . . . . . Legs 128 | . 77 51 . . . . . Wheels . | . . . . . . . . Hover . | . . . . . . . . Flight 1965 | . . 86 538 112 274 570 385 Fastest Speed 40 | 50 50 40 40 40 40 40 40 Average Speed 58 | 50 73 70 95 40 40 40 40 Slowest Speed 360 | 50 150 120 360 40 40 40 40 Overloaded Moves . | . . . . . . . . Propulsion Burnouts . | . . . . . . . . Robots Hopped 7 | . . . . 2 . 1 4 Cave-ins Triggered . | . . . . . . . . Exploration Rate (%) 32 | 3 40 41 93 24 27 18 12 Regions Visited 7 Branch Regions 3 Pre-discovered Areas 2 | . . 1 1 . . . . Known Exits Taken 2 | . . . . . 1 1 . Unknown Exits Taken 5 | 1 1 1 1 1 . . . Scrap Searched 2 | . . 1 . 1 . . . Spaces Dug . | . . . . . . . . Terrain Destroyed 3 | . 3 . . . . . . Melee . | . . . . . . . . Projectile . | . . . . . . . . AOE 3 | . 3 . . . . . . Actions | -11 -10 -10 -10 -9 -8 -7 -6 --------- Run | Scr Mat Min Exi Min Mat Fac Fac Total 2620 | 26 305 152 543 112 369 724 389 Wait 321 | . 60 7 . . 93 153 8 Move 2262 | 26 237 137 537 107 273 567 378 Hop 6 | . . . . 2 . 1 3 Pick Up . | . . . . . . . . Fast Attach 10 | . 4 1 2 1 1 1 . Attach 2 | . . . 1 . . 1 . Detach 4 | . . 1 1 1 . 1 . Swap . | . . . . . . . . Drop 6 | . . 2 2 1 1 . . Fire 2 | . 1 . . . 1 . . Melee . | . . . . . . . . Ram . | . . . . . . . . Kick 4 | . . 4 . . . . . Crush . | . . . . . . . . Escape Stasis . | . . . . . . . . Rewire . | . . . . . . . . Trap . | . . . . . . . . Miscellaneous 3 | . 3 . . . . . . Route ------- -11/Scrapyard -10/Materials -10/Mines -10/Exiles -9/Mines -8/Materials (discovered 3 exits: *Fac x3) -7/Factory (discovered 6 exits: *Fac x4 / Low x2) -6/Factory (discovered 6 exits: Fac x4 / Low x2) History --------- Turn | Location | Event 3 | -11/Scrapyard | Discovered new exit (range 15) 14 | -11/Scrapyard | Entered Materials 113 | -10/Materials | Met 8R-AWN 242 | -10/Materials | Discovered new exit (range 16) 260 | -10/Materials | Entered Mines 261 | -10/Mines | Followed 8R-AWN into the Mines 308 | -10/Mines | Learned location of Recycling (-9) 333 | -10/Mines | Assembled infested the area 338 | -10/Mines | Assisted by a Guerilla fighting off Assembled 349 | -10/Mines | Met a Derelict who couldn't figure out how to use a Trap Extractor 370 | -10/Mines | Discovered new exit (range 5) 372 | -10/Mines | Entered Exiles 377 | -10/Exiles | Build established: Hacker-Mutant 383 | -10/Exiles | Welcomed by 8R-AWN 392 | -10/Exiles | Met EX-HEX 419 | -10/Exiles | Met EX-DEC 430 | -10/Exiles | Learned location of Zion (-7) 441 | -10/Exiles | Met EX-BIN 447 | -10/Exiles | Aligned with FarCom system 447 | -10/Exiles | Given EX-Vault access code 465 | -10/Exiles | Opened EX-Vault 468 | -10/Exiles | Found Prototype Device 468 | -10/Exiles | Identified PSU Rigger 471 | -10/Exiles | Found Prototype Energy Cannon 471 | -10/Exiles | Identified Gui. Plasma Cannon 564 | -10/Exiles | Warned to stay clear of 0b10 Research branches 663 | -10/Exiles | Visited The Gauntlet 876 | -10/Exiles | Discovered new exit (range 14) 889 | -10/Exiles | Left Exiles lab with Gui. Plasma Cannon 889 | -10/Exiles | Entered Mines 900 | -9/Mines | Met a Derelict bent on vengeance 935 | -9/Mines | Discovered new exit (range 4) 936 | -9/Mines | Entered Materials 938 | -8/Materials | Reached level 2 946 | -8/Materials | Identified exit to Factory 946 | -8/Materials | Reached level 3 1131 | -8/Materials | Core integrity fell below 50% 1143 | -8/Materials | Entered Factory 1144 | -7/Factory | Core integrity fell below 50% 1145 | -7/Factory | Reached level 4 1466 | -7/Factory | Identified exit to Lower Caves 1466 | -7/Factory | Identified exit to Factory 1527 | -7/Factory | Entered another Factory area 1528 | -6/Factory | Core integrity fell below 50% 1529 | -6/Factory | Reached level 5 1662 | -6/Factory | Identified exit to Lower Caves 1672 | -6/Factory | Core integrity fell below 20% 1674 | -6/Factory | Identified exit to Factory 1689 | -6/Factory | Destroyed by S-27 Virus with Autogun Last Messages --------------- >>Trojan(Botnet) Trojan loaded successfully. Testing... Terminal linked with 2 systems. Awaiting botnet instructions. 01666_ ALERT: Hostiles spotted, dispatching reinforcements to Terminal F017. 01669_ W-25 Informer sends out distress signal. 01672_ U-05 Engineer destroyed. 01674_ Connecting with Terminal... >>Access(Main) Found 4 level access points to Factory: (187,156) (179,24) (62,16) (18,129) Map updated. 01684_ Triggered Heavy Explosive Trap. 01684_ An explosion rips through the floor. 01687_ U-05 Engineer lays Concrete. Map ----- +----------------------------------------------------+ | " "" #????????????????????????????????????????? | | "R"" #????????????????????????????????????????? | | """" #??????????????? ????????????????????????? | | ?? ????####+####???? ???????????????????????? | | ?###/###???# #???? ???????????????????????? | | ## ##### #??? ???????????????????????? | | T #?# ???????????????????????? | | "" #?# ????????????????????????? | | ] #?# ????????????????????????? | | ## ##### #?# ????????????????????????? | | ?#######???# #?# ????????????????????????? | | ???????###?## s #### ????????????????????????? | | ??????## #### s # ######+#####???????????????? | | ??????# =* # ??????????????? | | ??????# =* # s ???????????????? | | ??????# * # ""g"g! ????????????????? | | ??????# # """ " ??????????????????? | | ??????# # "R " ??????????????????? | | ####### ##### """ " #???????????????????? | | + "" # * """ " #???????????????????? | | ####### "" # # " #???????????????????? | | # "T # # " #???????????????????? | | " "" # "" # # " #???????????????????? | | " T" # "" # + " #???????????????????? | | " "" # # # #???????????????????? | | " ####### # @ #???????????????????? | | " #?????# ####+######???????????????????? | | " #?????# ## ???????????????????????? | | " #?????# ## "Y" #?????????????????????? | | " #?????# ## """ #?????????????????????? | | " #?????######### #?????????????????????? | | #?????????????########?????????????????????? | | ##+######################????????????????????????? | | ????????????????????????? | | ######## ###????????????????????????? | | #??????# ###????????????????????????? | | #??????# # ????????????????????????? | | ?????????????????????????????????????????????????? | | ?????????????????????????????????????????????????? | | ?????????????????????????????????????????????????? | | ?????????????????????????????????????????????????? | | ?????????????????????????????????????????????????? | | ?????????????????????????????????????????????????? | | ?????????????????????????????????????????????????? | | ?????????????????????????????????????????????????? | | ?????????????????????????????????????????????????? | | ?????????????????????????????????????????????????? | | ?????????????????????????????????????????????????? | | ?????????????????????????????????????????????????? | | ?????????????????????????????????????????????????? | +----------------------------------------------------+ Best States ------------- Heat Dissipation 25 Energy Generation 14 Energy Capacity 160 Matter Stores 300 Matter Capacity 300 Sight Range 16 Robot Scan Range 10 Terrain Scan Density 10 Evasion (%) 62 Offensive Hacking 15 Defensive Hacking 15 Item Schematics ----------------- None Robot Schematics ------------------ None Fabricated ------------ Nothing Alien Tech Used ----------------- None Achievements -------------- None Challenges ------------ None RPGLIKE | -11 -10 -10 -10 -9 -8 -7 -6 --------- Run | Scr Mat Min Exi Min Mat Fac Fac Levels Raised 4 | . . . . . 2 1 1 XP Earned 9450 | 3000 75 500 350 500 1575 1790 1660 XP Spent 2950 | . 2700 250 . . . . . Upgrades 7 | . 6 1 . . . . . Inventory Capacity 1 | . . 1 . . . . . Hack Attack % 3 | . 3 . . . . . . Hack Defense % 3 | . 3 . . . . . . Protomatter Created . | . . . . . . . . Integrity Restored 52 | . 52 . . . . . . Core 28 | . 28 . . . . . . Parts 24 | . 24 . . . . . . Protomatter Decayed 69 | . 69 . . . . . . Game ------ Seed HeatReinforcedKatana Manual? 0 Play Time 00:32:31 Cumulative 88.9 hours Start 2019.12.21 @ 17:32:39 End 2019.12.21 @ 18:03:20 Sessions 1 Manual Loads 0 Difficulty Rogue Special Mode Winter2019/RPGLIKE Game No. 119 Rogue 119 Adventurer 0 Explorer 0 Win Type - Total 8 Types 7/0/0/1/0/0/0 Lore% 48 Gallery% 60 Achievement% 48 Wizard Run 0 Options --------- ASCII 0 Keyboard 0 Movement Numpad Keybinds 0 Fullscreen 2 Font 18/SmallcapsGlow Map View 76x50 Tactical HUD 1 Map Filters NONE Filters NONE Steam 1 RUN: b6e491e6-c663-47fe-80ad-ba2b3c2d6bbb